Cogmind - Beta 17 @@@ ROGUE MODE // 2026.08.11 @ 16:48:09 Player: Retknock Result: Smashed by cave-in Performance ------------- Evolutions (1) 500 Regions Visited (3) 600 Robots Destroyed (86) 430 Value Destroyed (1642) 1642 Prototype IDs (3) 60 Alien Tech Used (0) 0 Bonus (-54) -54 TOTAL SCORE: 3178 Bonus ------- Friendly Fire -54 Cogmind --------- Core Integrity 0/400 Matter 280/300 Energy 296/440 System Corruption 0% Temperature Cool (80) Movement Rolling (115) Ox2 Location -9/Storage Parts ------- > --- POWER (1) -------- Nuclear Core > --- PROPULSION (2) --- Wheel Armored Wheel > --- UTILITY (3) ------ High-capacity Storage Unit Compact Battery Hardlight Generator > --- WEAPON (3) ------- Minigun Improved Light Cannon Mining Laser > --- INVENTORY (20) --- Nuclear Core Nuclear Core Wheel Wheel Wheel Heat Sink Heat Sink Compact Battery (200) Seismic Detector Medium Armor Plating Medium Armor Plating Hardened Light Armor Plating Hacking Suite System Shield Spread Laser Light EM Pulse Cannon Minigun Minigun Improved Light Cannon Rocket Launcher Peak State ------------ > --- POWER ------------ Nuclear Core > --- PROPULSION ------- Wheel Armored Wheel > --- UTILITY ---------- High-capacity Storage Unit Compact Battery Hardlight Generator > --- WEAPON ----------- Light EM Pulse Cannon Minigun Improved Light Cannon > --- INVENTORY -------- Nuclear Core Nuclear Core Wheel Wheel Wheel Heat Sink Heat Sink Compact Battery Seismic Detector Medium Armor Plating Medium Armor Plating Hardened Light Armor Plating Hacking Suite System Shield Spread Laser Minigun Minigun Improved Light Cannon Rocket Launcher Mining Laser [Rating: 24] Favorites ----------- Power Light Ion Engine Engine Light Ion Engine Power Core Nuclear Core Propulsion Compact Wheel Leg Aluminum Leg Wheel Compact Wheel Utility Seismic Detector Device Seismic Detector Storage Huge Storage Unit Weapon Beam Cannon Energy Gun Particle Gun Energy Cannon Beam Cannon Ballistic Gun Minigun Ballistic Cannon Improved Light Cannon Launcher Rocket Launcher Special Weapon Mining Laser Build | -11 -10 -9 -9 ------- Run | Yrd Mat Mat Sto Slots Evolved 2 | . . 2 . Power . | . . . . Propulsion . | . . . . Utility 1 | . . 1 . Weapon 1 | . . 1 . Parts Attached 80 | 9 18 44 9 Power 15 | 2 3 9 1 Engine 12 | 2 2 8 . Core 3 | . 1 1 1 Reactor . | . . . . Propulsion 22 | 3 5 11 3 Treads . | . . . . Leg 4 | 2 2 . . Wheel 18 | 1 3 11 3 Hover . | . . . . Flight . | . . . . Utility 19 | 2 4 12 1 Device 12 | 1 2 8 1 Storage 7 | 1 2 4 . Processor . | . . . . Hackware . | . . . . Protection . | . . . . Artifact . | . . . . Weapon 24 | 2 6 12 4 Energy Gun 2 | 1 1 . . Energy Cannon 5 | . . 4 1 Ballistic Gun 10 | 1 4 4 1 Ballistic Cannon 4 | . . 4 . Launcher 1 | . . . 1 Special Weapon 2 | . 1 . 1 Impact Weapon . | . . . . Slashing Weapon . | . . . . Piercing Weapon . | . . . . Special Melee Weapon . | . . . . Unidentified Prototypes 1 | . . 1 . Parts Lost 10 | . 4 6 . Power . | . . . . Propulsion 4 | . 2 2 . Utility 4 | . 1 3 . Weapon 2 | . 1 1 . Highest Loss Streak 4 | . 4 2 . To Critical Strikes . | . . . . Average Backups 18 | 4 8 22 19 Power 2 | . 1 2 2 Propulsion 3 | 2 3 3 3 Utility 6 | . 1 8 8 Weapon 5 | 1 2 7 5 Tool/Special . | . . . . Unused Backups 41 | 1 4 21 15 Power 5 | . . 3 2 Propulsion 11 | 1 3 5 2 Utility 17 | . . 8 9 Weapon 8 | . 1 5 2 Tool/Special . | . . . . Average Slot Usage (%) 99 | . 99 99 100 Engine 9 | . 12 10 . Core 2 | . 1 . 11 Leg 4 | . 20 . . Wheel 18 | . 7 21 22 Device 14 | . 13 16 11 Storage 17 | . 14 16 22 Energy Gun 1 | . 5 1 . Energy Cannon 9 | . . 12 9 Ballistic Gun 13 | . 22 11 11 Ballistic Cannon 6 | . . 8 11 Peak Build Rating 24 | 7 11 20 24 Average Rating 15 | 5 7 16 21 On Entrance 9 | . 7 9 20 Avg Prop Armor Cover (%) . | . . . . Naked Turns . | . . . . Heaviest Build 102 | 14 90 102 64 Greatest Support 32 | 20 32 32 32 Greatest Overweight (x) 9 | . 4 9 2 Average Overweight (x) 2 | . 1 2 1 Largest Inventory Capacity 25 | 8 25 25 20 Average Capacity 20 | 7 13 24 20 Most Carried 25 | 8 15 25 20 Average Carried 18 | 4 8 22 19 Final Capacity 25 | 8 25 20 20 Final Carried 20 | 8 15 20 20 Class Distribution -------------------- 37% | Scavenger-Gunner 23% | Gunner 17% | Mutant 13% | Tank 6% | Scavenger-Mutant Dominant Class ---------------- Mutant | -10/Materials Scavenger-Gunner | -9/Materials Tank | -9/Storage Resources | -11 -10 -9 -9 ----------- Run | Yrd Mat Mat Sto Matter Collected 2117 | 311 507 1091 208 Remotely . | . . . . Salvage Created 2768 | 182 561 1779 246 Parts 194 | 15 37 128 14 Haulers Intercepted 3 | . 1 2 . Recyclers Shooed 2 | 1 1 . . Parts Field Recycled . | . . . . Retrieved Matter . | . . . . Parts Self-Destructed . | . . . . Prevented . | . . . . Parts Restored . | . . . . Kills | -11 -10 -9 -9 ------- Run | Yrd Mat Mat Sto Combat Hostiles Destroyed 52 | . 14 33 5 Guns 26 | . 14 11 1 Cannons 26 | . . 22 4 Classes Destroyed 12 | 3 4 5 . Worker 8 | 2 1 5 . Builder 2 | . . 2 . Tunneler 7 | 2 2 3 . Hauler 3 | . 1 2 . Recycler 6 | 1 . 5 . Mechanic 1 | . . 1 . Operator 3 | . . 3 . Watcher 4 | . 1 3 . Swarmer 23 | . 6 17 . Grunt 15 | . 8 6 1 Duelist 1 | . . 1 . Sentry 13 | . . 9 4 Best Kill Streak 8 | 3 5 8 1 Combat Bots Only 7 | . 5 7 1 Max Kills in Single Turn 2 | 1 1 2 1 Gunslinging . | . . . . Exploded . | . . . . Melee . | . . . . Uniques/NPCs Destroyed . | . . . . Combat | -11 -10 -9 -9 -------- Run | Yrd Mat Mat Sto Hostile Shots Fired 308 | . 99 189 20 Missed 74 | . 18 50 6 Hits 234 | . 81 139 14 Projectile 234 | . 81 139 14 Critical Strikes 3 | . . 3 . Damage Taken 2724 | . 874 1389 461 Core 637 | . 228 272 137 Absorbed by Shields 119 | . . 72 47 Regen/Repaired (Parts) 243 | . . 99 144 Core Remaining (%) 54 | 100 8 . . Volleys Fired 242 | 21 83 116 22 Largest 3 | 2 2 3 3 Hottest 145 | 60 85 145 118 Shots Fired 595 | 42 163 347 43 Gun 343 | 42 160 130 11 Cannon 238 | . . 217 21 Launcher . | . . . . Special 14 | . 3 . 11 Kinetic 339 | 21 125 171 22 Thermal 231 | . 37 176 18 Explosive . | . . . . Electromagnetic 25 | 21 1 . 3 Robot Hit Streak 20 | 4 20 12 7 Robot Miss Streak 7 | 3 5 7 2 Penetration Max . | . . . . Secondary Targets 3 | . 3 . . Max Gunslinging Chain 1 | . 1 . . Shots Hit Robots 303 | 19 102 165 17 Core Hits 125 | 10 38 69 8 Critical Kills . | . . . . Critical Parts Destroyed 2 | . 2 . . Critical Strikes 5 | 1 3 1 . Burn 1 | . 1 . . Destroy 2 | . 2 . . Blast 1 | . . 1 . Corrupt 1 | 1 . . . Melee Attacks . | . . . . Impact . | . . . . Slashing . | . . . . Piercing . | . . . . Sneak Attacks . | . . . . Combat Hostiles . | . . . . Follow-up Attacks . | . . . . Damage Inflicted 4490 | 200 1028 2884 378 Guns 2134 | 200 1016 786 132 Cannons 2289 | . . 2081 208 Explosions . | . . . . Melee . | . . . . Ramming 67 | . 12 17 38 Kinetic 2128 | 65 670 1148 245 Thermal 2117 | . 346 1719 52 Explosive . | . . . . Electromagnetic 178 | 135 . . 43 Impact . | . . . . Slashing . | . . . . Piercing . | . . . . Highest Corruption . | . . . . Average Corruption . | . . . . Corruption Purged . | . . . . Corruption Blocked . | . . . . Overload Shots . | . . . . Overflow Damage 15 | . 2 13 . Projectiles 13 | . . 13 . Explosions . | . . . . Melee 2 | . 2 . . Knockbacks 4 | . . 4 . Impact . | . . . . Kinetic 4 | . . 4 . Secondary . | . . . . Self-Inflicted Damage 27 | . . 8 19 Shots . | . . . . Rammed 2 | . . 1 1 Targets Rammed 3 | . 1 1 1 Kicked 1 | . 1 . . Crushed . | . . . . Highest Temperature 408 | 40 408 322 112 Average Temperature 54 | 18 87 49 31 Received Heat Transfer 768 | . 324 378 66 Effects 2 | . . 2 . Shutdowns 1 | . . 1 . Energy Bleed 1 | . . 1 . Siege Activations . | . . . . Martial Activations . | . . . . Shielding Activations . | . . . . Robots Disrupted . | . . . . Combat Hostiles . | . . . . Robots Corrupted . | . . . . Combat Hostiles . | . . . . Parts Fried 1 | 1 . . . Impact Corruptions 1 | . 1 . . Robots Melted . | . . . . Combat Hostiles . | . . . . Parts Melted 11 | . 3 8 . Heat Transferred 4699 | . 925 3663 111 Parts Sabotaged . | . . . . Parts Stolen . | . . . . Parts Stripped . | . . . . Power Chain Reactions . | . . . . Alert | -11 -10 -9 -9 ------- Run | Yrd Mat Mat Sto Maximum Alert Level 1 | . . 1 . Low Security (%) 84 | 100 100 73 100 Level 1 15 | . . 26 . Level 2 . | . . . . Level 3 . | . . . . Level 4 . | . . . . Level 5 . | . . . . High Security . | . . . . Max Security . | . . . . Peak Influence 266 | 10 96 266 104 Initial 104 | . 3 13 104 Average 91 | 1 20 142 23 Influence Increases 1747 | 25 429 1121 172 Destroy 0b10 Robot/C 1040 | . 280 660 100 Destroy 0b10 Robot/NC 170 | 25 25 120 . Destroy Leader 284 | . 64 180 40 Successful Hack 57 | . . 49 8 Disable Machine 15 | . 15 . . Destroy Structure 16 | . . 7 9 Partial Spotted 15 | . . 15 . Lose Combat Pursuer 150 | . 45 90 15 Influence Decreases 1734 | 20 401 907 406 Entered New Map 165 | . 2 20 143 Time Decay 1229 | 20 269 677 263 Lost Part 100 | . 40 60 . Purge Threat 240 | . 90 150 . Squads Dispatched 13 | . 2 4 7 Investigation 6 | . 1 3 2 Extermination . | . . . . Reinforcement 4 | . 1 1 2 Assault . | . . . . Garrison 3 | . . . 3 Intercept . | . . . . Searches Triggered . | . . . . Construction Impeded . | . . . . Haulers Reinforced . | . . . . Active Scanning Responses . | . . . . Cargo Convoy Interrupts . | . . . . Stealth | -11 -10 -9 -9 --------- Run | Yrd Mat Mat Sto Distress Signals 6 | . 3 2 1 Communications Jammed . | . . . . Distress Signals . | . . . . Times Spotted 119 | . 28 58 33 Peak Tracking Total 5 | . 5 4 5 Tactical Retreats 9 | . 2 6 1 Traps | -11 -10 -9 -9 ------- Run | Yrd Mat Mat Sto Traps Triggered 4 | . 1 1 2 Indirectly . | . . . . Trap Hack Attempts . | . . . . Triggered . | . . . . Disarmed . | . . . . Reprogrammed . | . . . . Reused . | . . . . Traps Extracted . | . . . . Installed . | . . . . Triggered . | . . . . Machines | -11 -10 -9 -9 ---------- Run | Yrd Mat Mat Sto Machines Disabled 1 | . 1 . . Max in Single Turn 1 | . 1 . . Machines Repaired . | . . . . Machines Dismantled . | . . . . Machines Sabotaged . | . . . . Overloaded Fab Kills . | . . . . Hacking | -11 -10 -9 -9 --------- Run | Yrd Mat Mat Sto Machines Accessed 20 | . 3 11 6 Terminals 13 | . 2 7 4 Fabricators . | . . . . Repair Stations 3 | . . 2 1 Recycling Units 2 | . 1 . 1 Scanalyzers 2 | . . 2 . Garrison Access . | . . . . Total Hacks 61 | . 8 29 24 Successful 36 | . 3 20 13 Failed 25 | . 5 9 11 Catastrophic 2 | . . 2 . Database Lockouts . | . . . . Manual 12 | . 3 1 8 Terminals 32 | . 5 14 13 Fabricators . | . . . . Repair Stations 15 | . . 8 7 Recycling Units 7 | . 3 . 4 Scanalyzers 7 | . . 7 . Garrison Access . | . . . . Terminal Hacks 10 | . 1 8 1 Prototype ID Bank 1 | . . . 1 Branch Access Points 1 | . . 1 . Emergency Access Points 1 | . . 1 . Recycling Unit Index 1 | . . 1 . Alert Level 1 | . . 1 . Unreport Threat 2 | . 1 1 . Maintenance Status 1 | . . 1 . Recall Assault 1 | . . 1 . Registered Prototypes 1 | . . 1 . Fabricator Hacks . | . . . . Repair Station Hacks 12 | . . 7 5 Scan Component 7 | . . 4 3 Repair 5 | . . 3 2 Recycling Unit Hacks 3 | . 1 . 2 Recycle Component 1 | . . . 1 Process 1 | . . . 1 Report Inventory 1 | . 1 . . Scanalyzer 4 | . . 4 . Insert Component 2 | . . 2 . Analyze 2 | . . 2 . Garrison Access Hacks . | . . . . Unauthorized Hacks 6 | . 1 1 4 Terminals 5 | . 1 1 3 Botnet 4 | . 1 1 2 Skim 1 | . . . 1 Fabricators . | . . . . Repair Stations . | . . . . Recycling Units 1 | . . . 1 Recyclers 1 | . . . 1 Scanalyzers . | . . . . Garrison Access . | . . . . Data Cores Recovered 2 | . . 2 . Used 1 | . . 1 . Hacking Detections 18 | . 3 9 6 Full Trace Events 8 | . 1 3 4 Feedback Events . | . . . . Feedback Blocked . | . . . . Robot Schematics Acquired . | . . . . Robots Built . | . . . . Authchips . | . . . . Time . | . . . . Total Robot Build Rating . | . . . . Part Schematics Acquired 2 | . . 2 . Parts Built . | . . . . Authchips . | . . . . Time . | . . . . Total Part Build Rating . | . . . . Part Studies Acquired . | . . . . Parts Repaired 5 | . . 3 2 Time 154 | . . 78 76 Parts Recycled 1 | . . . 1 Recycled Matter 34 | . . . 34 Retrieved Matter . | . . . . Retrieved Components . | . . . . Parts Scanalyzed 2 | . . 2 . Part Schematics Acquired 2 | . . 2 . Parts Damaged . | . . . . Bothacking | -11 -10 -9 -9 ------------ Run | Yrd Mat Mat Sto Used RIF Installer . | . . . . Robots Hacked . | . . . . Non-combat . | . . . . Combat . | . . . . Robot Hacks Applied . | . . . . Relay Couplers Released . | . . . . Fabnet Peak Effective % . | . . . . Robots Rewired . | . . . . Allies Hacked . | . . . . Hacks Repelled . | . . . . Allies | -11 -10 -9 -9 -------- Run | Yrd Mat Mat Sto Total Allies . | . . . . Largest Group . | . . . . Highest-Rated Group . | . . . . Highest-Rated Ally . | . . . . Total Orders . | . . . . Ally Attacks . | . . . . Total Damage . | . . . . Kills . | . . . . Allies Corrupted . | . . . . Allies Melted . | . . . . Intel | -11 -10 -9 -9 ------- Run | Yrd Mat Mat Sto Active Infowar (turns) 3395 | 123 1000 2072 200 Seismic 3395 | 123 1000 2072 200 Robot Analysis Total . | . . . . Derelict Logs Recovered . | . . . . Drone Launches . | . . . . Drone Recoveries . | . . . . Exploration | -11 -10 -9 -9 ------------- Run | Yrd Mat Mat Sto Turns Passed 5460 | 213 1153 3171 923 Spaces Moved 2936 | 120 542 1749 525 Core 16 | 16 . . . Treads . | . . . . Legs 477 | 91 386 . . Wheels 2443 | 13 156 1749 525 Hover . | . . . . Flight . | . . . . Fastest Speed 50 | 50 120 115 115 Average Speed 129 | 108 125 136 116 Slowest Speed 215 | 120 140 215 120 Overloaded Moves . | . . . . Propulsion Burnouts . | . . . . Robots Hopped . | . . . . Potential Cave-ins . | . . . . Cave-ins Triggered 1 | . . . 1 Exploration Rate (%) 57 | 4 47 96 81 Regions Visited 3 Branch Regions 1 Pre-discovered Areas . | . . . . Known Exits Taken 1 | . . 1 . Unknown Exits Taken 2 | 1 1 . . Scrap Searched . | . . . . Spaces Dug 9 | . . . 9 Terrain Destroyed 14 | . . 3 11 Melee . | . . . . Projectile 14 | . . 3 11 AOE . | . . . . Terrain Rammed . | . . . . Walls Destroyed . | . . . . Machines Disabled . | . . . . Actions | -11 -10 -9 -9 --------- Run | Yrd Mat Mat Sto Total 4134 | 165 881 2312 776 Wait 643 | . 197 252 194 Move 2933 | 119 541 1748 525 Hop . | . . . . Pick Up 116 | 13 21 75 7 Fast Attach 11 | 3 . 8 . Attach 19 | 5 4 9 1 Detach 1 | 1 . . . Swap 76 | 1 17 45 13 Drop 83 | 2 17 58 6 Fire 242 | 21 83 116 22 Melee . | . . . . Ram 2 | . . 1 1 Kick 1 | . 1 . . Crush . | . . . . Escape Stasis 7 | . . . 7 Rewire . | . . . . Trap . | . . . . Miscellaneous . | . . . . Route ------- -11/Scrapyard -10/Materials -9/Materials (discovered 4 exits: [*Mat x2] / *Min / *Sto) -9/Storage (discovered 2 exits: [*Mat] / [*Rec]) History --------- Turn | Location | Event 6 | -11/Scrapyard | Discovered new exit (range 15) 214 | -11/Scrapyard | Entered Materials 302 | -10/Materials | Build established: Mutant 986 | -10/Materials | Core integrity fell below 50% 1041 | -10/Materials | Discovered new exit (range 15) 1100 | -10/Materials | Core integrity fell below 20% 1139 | -10/Materials | Lost 4 parts (2n1u1w) 1286 | -10/Materials | Build established: Scavenger-Mutant 1367 | -10/Materials | Entered another Materials area 1367 | -9/Materials | Evolved 2 slots: Utility x1, Weapon x1 1617 | -9/Materials | Repaired Wheel 1643 | -9/Materials | Repaired Beam Cannon 1709 | -9/Materials | Build established: Scavenger-Gunner 2058 | -9/Materials | Repaired Beam Cannon 2337 | -9/Materials | Discovered new exit (range 16) 2877 | -9/Materials | Core integrity fell below 50% 2881 | -9/Materials | Destroyed 7 combat bots 3018 | -9/Materials | Discovered new exit (range 15) 3143 | -9/Materials | Discovered new exit (range 7) 3886 | -9/Materials | Discovered new exit (range 11) 3965 | -9/Materials | Build established: Gunner 4069 | -9/Materials | Identified exit to Mines 4069 | -9/Materials | Identified exit to Storage 4538 | -9/Materials | Entered Storage 4551 | -9/Storage | Met 01-MTF 4670 | -9/Storage | Garrison activated, responded to threat 4857 | -9/Storage | Repaired Minigun 4896 | -9/Storage | Repaired Minigun 4974 | -9/Storage | Discovered new exit (range 16) 5074 | -9/Storage | Build established: Tank 5349 | -9/Storage | Discovered new exit (range 4) 5431 | -9/Storage | Core integrity fell below 20% 5462 | -9/Storage | Crushed by falling debris 5462 | -9/Storage | Smashed by cave-in Last Messages --------------- 05430_ Compression Vault explodes. 05430_ G-34 Mercenary destroyed. 05430_ Compression Vault explodes. 05430_ G-34 Mercenary destroyed. 05430_ Terminal disabled. 05430_ G-34 Mercenary destroyed. 05430_ Terminal disabled. 05430_ 01-MTF destroyed. 05432_ U-05 Engineer builds a Wall. 05434_ K-01 Serf collects debris. 05436_ U-05 Engineer builds a Wall. 05438_ K-01 Serf collects debris. 05456_ U-05 Engineer lays Concrete. 05456_ K-01 Serf collects debris. 05457_ U-05 Engineer lays Concrete. 05459_ K-01 Serf collects debris. 05459_ U-05 Engineer builds a Wall. 05459_ K-01 Serf collects debris. 05462_ The unstable cave ceiling collapses. 05462_ Crushed by falling debris. Map ----- +----------------------------------------------------+ | | | | | | | | | | | | | | | | | ??????????????##################??? | | ??????????????# [ # #??? | | ??????????????# # #??? | | ??????????????# # #??? | | ??????????????# # #??? | | ?????????????## # #??? | | ?????????????#" = # #??? | | ?????????????##! # #??? | | ??????????????# # #??? | | ??????????????# " #?## | | ?????????###??# "##/######## | | ??????#### ######+#""""%= # # | | ??????# %![ %# """ # | | ??????# < [ + """ # | | ??????# #T####### "" # """ # | | ??????######### ## ## # | | ?????####; #?# ## ## """ # | | ???###" " @##?# ## ## """ # | | ??## ### + ## """ " | | ??#T ## ## ## ## | | ??## ## ## ## #? | | ???# ## ## ####/###? | | ???# % % ## ## #??? #??? | | ???# === ## ## ??? /??? | | ???# = =# ## ????? # ?? | | ???# k [%k [#! ## ??????# ? | | ???# u ! %########## ???????? | | ???#### +#######????????????????? | | ????? + ???????????????????? | | ???? # ???????????????????# | | ???? # """ " ??????????????????? | | ??? # """ "G??????????????????? | | ??? ?/ """ ""??????????????????? | | ???? ?# ??????????????????? | | ??????# ???????????????????? | | ??????# ###??????????????????? | | ??????# #????????????????????? | | ??????# ?????????????????????? | | ??????" !"#/####???#?????????????? | | ??????# [%" % ##????????????? | | ??????# =" T """ ?????????????? | | ??????# # """ ####??????????? | +----------------------------------------------------+ Best States ------------- Heat Dissipation 48 Energy Generation 14 Energy Capacity 515 Matter Stores 300 Matter Capacity 300 Sight Range 16 Terrain Scan Density 10 Evasion (%) 55 Item Schematics ----------------- Com. Wheel | -9/Materials | Scanalyzed Wheel | -9/Materials | Scanalyzed Robot Schematics ------------------ None Fabricated ------------ Nothing Repaired ---------- Beam Cannon | 73% | -9/Materials Beam Cannon | 28% | -9/Materials Minigun | 36% | -9/Storage Minigun | 48% | -9/Storage Studied --------- None Alien Tech Used ----------------- None Achievements -------------- Dynamic Key Challenges ------------ None Game ------ Seed GaussGravitonSuit Manual? 0 Play Time 01:27:36 Cumulative 18.2 hours Start 2026.08.09 @ 06:30:30 End 2026.08.11 @ 16:48:09 Sessions 4 Manual Loads 0 Difficulty Rogue Special Mode None Game No. 18 Rogue 18 Adventurer 0 Explorer 0 Win Type - Total 0 Types 0/0/0/0/0/0/0/0/0/0 Lore% 12 Gallery% 16 Achievement% 13 Wizard Run 0 Options --------- Layout 2 ASCII 0 Keyboard 0 Movement Mouse Keybinds 0 Fullscreen 1 Font 24/Proggy Map View 50x44 Zoom Use 0% Tactical HUD 1 Map Filters NONE Filters NONE Steam 1 RUN: 452a1f1c-e58f-4dbf-b08e-faa3343c27af